lending/lending_fUSD_20240621
["ID","MTS","AMOUNT","RATE_DAILY","PERIOD"]
[330069402,1718987580055,-500.0,0.00021917,4]
[330069403,1718987580089,-500.0,0.00021917,4]
[330069404,1718987580123,-765.5,0.00021917,4]
[330069405,1718987580156,-500.0,0.00021917,4]
[330069406,1718987580188,-500.0,0.00021917,4]
[330069407,1718987580221,-1467.19,0.00021917,4]
[330069408,1718987580255,-842.38,0.00021917,4]
[330069409,1718987580287,-750.4,0.00021917,4]
[330069410,1718987580314,-500.0,0.00021917,4]
[330069411,1718987580350,-920.79,0.00021917,4]
[330069412,1718987580381,-500.0,0.00021917,4]
[330069413,1718987580411,-500.0,0.00021917,4]
[330069414,1718987580442,-551.74,0.00021917,4]
[330069415,1718987580470,-311.73969459,0.00021917,4]
[330069416,1718987580498,-598.35,0.00021917,4]
[330069417,1718987580526,-500.0,0.00021917,4]
[330069418,1718987580556,-637.63,0.00021917,4]
[330069419,1718987580589,-500.0,0.00021917,4]
[330069420,1718987580625,-674.53,0.00021917,4]
[330069421,1718987580655,-500.0,0.00021917,4]
[330069422,1718987580683,-944.02,0.00021917,4]
[330069423,1718987580712,-500.0,0.00021917,4]
[330069424,1718987580741,-500.0,0.00021917,4]
[330069425,1718987580770,-769.31,0.00021917,4]
[330069426,1718987580801,-2889.89,0.00021917,4]
[330069427,1718987580830,-500.0,0.00021917,4]
[330069428,1718987580860,-1128.66,0.00021917,4]
[330069429,1718987580890,-500.0,0.00021917,4]
[330069430,1718987580920,-151.0,0.00021917,2]
[330069431,1718987580948,-500.0,0.00021917,4]
[330069432,1718987580978,-500.0,0.00021917,4]
[330069433,1718987581008,-966.63,0.00021917,4]
[330069434,1718987581039,-500.0,0.00021917,4]
[330069435,1718987581067,-584.18,0.00021917,4]
[330069436,1718987581096,-1033.31,0.00021917,4]
[330069437,1718987581126,-500.0,0.00021917,4]
[330069438,1718987581155,-574.62020592,0.00021917,4]
[330069439,1718987582217,-500.0,0.00021917,4]
[330069440,1718987582291,-500.0,0.00021917,8]
[330069441,1718987582316,-853.88,0.00021917,4]
[330069442,1718987582351,-2343.28,0.00021917,4]
[330069443,1718987582378,-553.08,0.00021917,4]
[330069444,1718987582402,-692.53,0.00021917,4]
[330069445,1718987582428,-500.0,0.00021917,4]
[330069446,1718987582450,-500.0,0.00021917,4]
[330069447,1718987582473,-500.0,0.00021917,4]
[330069448,1718987582496,-500.0,0.00021917,4]
[330069449,1718987582521,-1257.5,0.00021917,4]
[330069450,1718987582552,-500.0,0.00021917,4]
[330069451,1718987582576,-878.77,0.00021917,4]
[330069452,1718987582599,-650.0,0.00021917,4]
[330069453,1718987582624,-500.0,0.00021917,4]
[330069454,1718987582648,-500.0,0.00021917,4]
[330069455,1718987582672,-500.0,0.00021917,4]
[330069456,1718987582697,-500.0,0.00021917,4]
[330069457,1718987582720,-500.0,0.00021917,4]
[330069458,1718987582743,-500.0,0.00021917,4]
[330069459,1718987582767,-683.43,0.00021917,4]
[330069460,1718987582792,-500.0,0.00021917,4]
[330069461,1718987582815,-500.0,0.00021917,4]
[330069462,1718987582839,-772.03,0.00021917,4]
[330069463,1718987582863,-500.0,0.00021917,4]
[330069464,1718987582887,-644.23,0.00021917,4]
[330069465,1718987582914,-667.94,0.00021917,4]
[330069466,1718987582938,-471.1507664,0.00021917,4]
[330069467,1718987582962,-500.0,0.00021917,4]
[330069468,1718987582987,-500.0,0.00021917,4]
[330069469,1718987583009,-500.0,0.00021917,7]
[330069470,1718987583038,-1256.24,0.00021917,4]
[330069471,1718987583063,-772.42,0.00021917,4]
[330069472,1718987583088,-815.54,0.00021917,4]
[330069473,1718987583114,-2385.93,0.00021917,4]
[330069474,1718987583144,-500.0,0.00021917,4]
[330069475,1718987583170,-500.0,0.00021917,4]
[330069476,1718987583194,-688.28,0.00021917,4]
[330069477,1718987583220,-500.0,0.00021917,4]
[330069478,1718987583246,-497.47783859,0.00021917,4]
[330069479,1718987583271,-500.0,0.00021917,4]
[330069480,1718987583295,-500.0,0.00021917,4]
[330069481,1718987583319,-404.88455126,0.00021917,4]
[330069482,1718987583350,-500.0,0.00021917,4]
[330069483,1718987583375,-1049.53,0.00021917,4]
[330069484,1718987583399,-500.0,0.00021917,4]
[330069485,1718987583425,-1854.83,0.00021917,4]
[330069486,1718987583450,-500.0,0.00021917,4]
[330069487,1718987583473,-892.4,0.00021917,4]
[330069488,1718987583500,-676.31,0.00021917,4]
[330069489,1718987583526,-947.8,0.00021917,4]
[330069490,1718987583552,-500.0,0.00021917,4]
[330069491,1718987583577,-1891.29,0.00021917,4]
[330069492,1718987583603,-500.0,0.00021917,4]
[330069493,1718987583628,-500.0,0.00021917,4]
[330069495,1718987583654,-729.79,0.00021917,4]
[330069496,1718987583678,-500.0,0.00021917,4]
[330069497,1718987583702,-1552.35,0.00021917,4]
[330069498,1718987583727,-500.0,0.00021917,4]
[330069499,1718987583751,-406.93380995,0.00021917,4]
[330069500,1718987583775,-697.02,0.00021917,4]
[330069501,1718987583801,-500.0,0.00021917,4]
[330069502,1718987583826,-1653.5,0.00021917,4]
[330069503,1718987583850,-623.42,0.00021917,4]
[330069504,1718987583875,-419.29156615,0.00021917,4]
[330069505,1718987583900,-1728.03,0.00021917,4]
[330069506,1718987583924,-500.0,0.00021917,4]
[330069507,1718987583948,-500.0,0.00021917,4]
[330069508,1718987583973,-2230.36,0.00021917,4]
[330069509,1718987583997,-1018.75,0.00021917,4]
[330069510,1718987584021,-500.0,0.00021917,4]
[330069511,1718987584046,-500.0,0.00021917,4]
[330069512,1718987584070,-500.0,0.00021917,4]
[330069513,1718987584097,-537.16,0.00021917,4]
[330069514,1718987584121,-1833.6,0.00021917,4]
[330069515,1718987584147,-500.0,0.00021917,4]
[330069516,1718987584171,-2930.94,0.00021917,4]
[330069517,1718987584207,-500.0,0.00021917,4]
[330069518,1718987584237,-500.0,0.00021917,4]
[330069519,1718987584263,-500.0,0.00021917,4]
[330069520,1718987584291,-691.19,0.00021917,4]
[330069521,1718987584318,-1715.23,0.00021917,4]
[330069522,1718987584350,-2341.37,0.00021917,4]
[330069523,1718987584377,-1221.9,0.00021917,4]
[330069524,1718987584404,-996.65,0.00021917,4]
[330069525,1718987584435,-517.03,0.00021917,4]
[330069526,1718987584459,-500.0,0.00021917,4]
[330069527,1718987584484,-615.7,0.00021917,4]
[330069528,1718987584510,-151.0,0.00021917,2]
[330069529,1718987584535,-151.0,0.00021917,2]
[330069530,1718987584562,-151.0,0.00021917,2]
[330069531,1718987584588,-1358.67,0.00021917,4]
[330069532,1718987584614,-500.0,0.00021917,4]
[330069533,1718987584639,-1062.91,0.00021917,4]
[330069534,1718987584664,-500.0,0.00021917,4]
[330069535,1718987584688,-500.0,0.00021917,4]
[330069536,1718987584715,-1350.95,0.00021917,4]
[330069537,1718987584741,-500.0,0.00021917,4]
[330069538,1718987584766,-1302.1,0.00021917,4]
[330069539,1718987584793,-500.0,0.00021917,4]
[330069540,1718987584818,-501.59,0.00021917,4]
[330069541,1718987584843,-500.0,0.00021917,4]
[330069542,1718987584868,-345.7223497,0.00021917,4]
[330069543,1718987584893,-1153.51,0.00021917,4]
[330069544,1718987584924,-500.0,0.00021917,4]
[330069545,1718987584950,-500.0,0.00021917,4]
[330069546,1718987584978,-1955.45,0.00021917,4]
[330069547,1718987585003,-1018.85,0.00021917,4]
[330069548,1718987585032,-692.01,0.00021917,4]
[330069549,1718987585060,-500.0,0.00021917,4]
[330069550,1718987585087,-500.0,0.00021917,4]
[330069551,1718987585113,-553.65,0.00021917,4]
[330069552,1718987585139,-500.0,0.00021917,4]
[330069553,1718987585165,-1015.69,0.00021917,4]
[330069554,1718987585191,-500.0,0.00021917,4]
[330069555,1718987585575,-500.0,0.00021917,4]
[330069556,1718987585602,-1734.44,0.00021917,4]
[330069557,1718987585627,-1073.08,0.00021917,4]
[330069558,1718987585651,-500.97,0.00021917,4]
[330069559,1718987585675,-2077.43,0.00021917,4]
[330069560,1718987585700,-500.0,0.00021917,4]
[330069561,1718987585724,-500.0,0.00021917,4]
[330069562,1718987585748,-500.0,0.00021917,4]
[330069563,1718987585772,-500.0,0.00021917,4]
[330069564,1718987585796,-1208.66,0.00021917,4]
[330069565,1718987585820,-660.21,0.00021917,4]
[330069566,1718987585844,-1326.76,0.00021917,4]
[330069567,1718987585868,-857.44,0.00021917,4]
[330069568,1718987585892,-1901.88,0.00021917,4]
[330069569,1718987585917,-1248.01,0.00021917,4]
[330069570,1718987585941,-151.0,0.00021917,2]
[330069571,1718987585965,-1085.42,0.00021917,4]
[330069572,1718987585989,-151.0,0.00021917,2]
[330069573,1718987586013,-151.0,0.00021917,2]
[330069574,1718987586038,-513.05,0.00021917,4]
[330069575,1718987586064,-1372.47,0.00021917,4]
[330069576,1718987586090,-151.0,0.00021917,2]
[330069577,1718987586116,-296.0,0.00021917,2]
[330069578,1718987586141,-500.0,0.00021917,4]
[330069579,1718987586164,-721.1,0.00021917,4]
[330069580,1718987586190,-662.92,0.00021917,4]
[330069581,1718987586215,-456.2165383,0.00021917,4]
[330069582,1718987586241,-760.76,0.00021917,4]
[330069583,1718987586267,-611.76,0.00021917,4]
[330069584,1718987586292,-500.0,0.00021917,4]
[330069585,1718987586316,-500.0,0.00021917,4]
[330069586,1718987586345,-504.48,0.00021917,4]
[330069587,1718987586370,-1443.32,0.00021917,4]
[330069588,1718987586393,-1456.87,0.00021917,4]
[330069589,1718987586419,-1367.63,0.00021917,4]
[330069590,1718987586442,-500.0,0.00021917,4]
[330069591,1718987586466,-500.0,0.00021917,4]
[330069592,1718987586508,-500.0,0.00021917,4]
[330069593,1718987586534,-625.53,0.00021917,4]
[330069594,1718987586560,-500.0,0.00021917,4]
[330069595,1718987586586,-791.65,0.00021917,4]
[330069596,1718987586611,-500.0,0.00021917,4]
[330069597,1718987586636,-1163.62,0.00021917,4]
[330069598,1718987586661,-500.0,0.00021917,4]
[330069599,1718987586685,-500.0,0.00021917,4]
[330069600,1718987586711,-504.29866919,0.00021917,4]
[330069601,1718987586737,-1980.15,0.00021917,4]
[330069602,1718987586762,-1729.62,0.00021917,4]
[330069603,1718987586788,-1011.28,0.00021917,4]
[330069604,1718987586814,-500.0,0.00021917,4]
[330069605,1718987586840,-500.0,0.00021917,4]
[330069606,1718987586864,-500.0,0.00021917,4]
[330069607,1718987586890,-500.0,0.00021917,4]
[330069608,1718987586916,-500.0,0.00021917,4]
[330069609,1718987586943,-651.95,0.00021917,4]
[330069610,1718987586967,-500.0,0.00021917,4]
[330069611,1718987586992,-977.9,0.00021917,4]
[330069612,1718987587020,-1623.47,0.00021917,4]
[330069613,1718987587049,-2435.8,0.00021917,4]
[330069614,1718987587073,-593.88,0.00021917,4]
[330069615,1718987587099,-1051.08,0.00021917,4]
[330069616,1718987587126,-2060.44,0.00021917,4]
[330069617,1718987587152,-500.0,0.00021917,4]
[330069618,1718987587180,-500.0,0.00021917,4]
[330069619,1718987587207,-285.72085511,0.00021917,4]
[330069620,1718987587233,-500.0,0.00021917,4]
[330069621,1718987587263,-1862.45,0.00021917,4]
[330069622,1718987587289,-617.23,0.00021917,4]
[330069623,1718987587317,-1345.15,0.00021917,4]
[330069624,1718987587349,-500.0,0.00021917,4]
[330069625,1718987587374,-925.63,0.00021917,4]
[330069626,1718987587400,-1409.32,0.00021917,4]
[330069627,1718987587427,-500.0,0.00021917,4]
[330069628,1718987587454,-649.19,0.00021917,4]
[330069629,1718987587480,-656.75,0.00021917,4]
[330069630,1718987587506,-500.0,0.00021917,4]
[330069631,1718987587532,-1076.93,0.00021917,4]
[330069632,1718987587560,-1105.98,0.00021917,4]
[330069633,1718987587586,-500.0,0.00021917,4]
[330069634,1718987587612,-500.0,0.00021917,4]
[330069635,1718987587636,-500.0,0.00021917,4]
[330069636,1718987587662,-500.0,0.00021917,4]
[330069637,1718987587690,-500.0,0.00021917,4]
[330069638,1718987587714,-1449.7,0.00021917,4]
[330069639,1718987587741,-500.0,0.00021917,4]
[330069640,1718987587767,-558.1666703,0.00021917,4]
[330069641,1718987587793,-994.49,0.00021917,4]
[330069642,1718987587818,-1374.74,0.00021917,4]
[330069643,1718987587843,-1053.13,0.00021917,4]
[330069644,1718987587870,-1520.86,0.00021917,4]
[330069645,1718987587896,-151.0,0.00021917,2]
[330069646,1718987587920,-2385.21,0.00021917,4]
[330069647,1718987587945,-222.09825464,0.00021917,4]
[330069648,1718987587968,-500.0,0.00021917,4]
[330069649,1718987587993,-1003.58,0.00021917,4]
[330069650,1718987588019,-500.0,0.00021917,4]
[330069651,1718987588044,-500.0,0.00021917,4]
[330069652,1718987588068,-500.0,0.00021917,4]
[330069653,1718987588095,-500.0,0.00021917,4]
[330069654,1718987588121,-500.0,0.00021917,4]
[330069655,1718987588146,-672.47,0.00021917,4]
[330069656,1718987588170,-500.0,0.00021917,4]
[330069657,1718987588193,-2268.42,0.00021917,4]
[330069658,1718987588218,-1582.42,0.00021917,4]
[330069659,1718987588242,-2026.61,0.00021917,4]
[330069660,1718987588266,-665.01,0.00021917,4]
[330069661,1718987588291,-500.0,0.00021917,4]
[330069662,1718987588319,-500.0,0.00021917,4]
[330069663,1718987588346,-500.0,0.00021917,4]
[330069664,1718987588372,-151.0,0.00021917,2]
[330069665,1718987588396,-151.0,0.00021917,2]
[330069666,1718987588423,-151.0,0.00021917,2]
[330069667,1718987588448,-212.773656,0.00021917,2]
[330069668,1718987588472,-500.0,0.00021917,4]
[330069669,1718987588497,-625.61,0.00021917,4]
[330069670,1718987588522,-500.0,0.00021917,4]
[330069671,1718987588550,-973.5,0.00021917,4]
[330069672,1718987588574,-752.38,0.00021917,4]
[330069673,1718987588599,-500.0,0.00021917,4]
[330069674,1718987588623,-888.11,0.00021917,4]
[330069675,1718987588952,-2244.12,0.00021917,4]
[330069676,1718987590270,-500.0,0.00021917,4]
[330069677,1718987590300,-642.88,0.00021917,4]
[330069678,1718987590327,-500.0,0.00021917,4]
[330069679,1718987590357,-500.0,0.00021917,4]
[330069680,1718987590387,-500.0,0.00021917,4]
[330069681,1718987590416,-151.0,0.00021917,2]
[330069682,1718987590442,-500.0,0.00021917,4]
[330069683,1718987590471,-2392.12,0.00021917,4]
[330069684,1718987590498,-510.77063824,0.00021917,4]
[330069685,1718987590525,-1608.03,0.00021917,4]
[330069686,1718987590556,-500.0,0.00021917,4]
[330069687,1718987590583,-860.79,0.00021917,4]
[330069688,1718987590608,-551.05,0.00021917,4]
[330069689,1718987590634,-500.0,0.00021917,4]
[330069690,1718987590659,-938.68,0.00021917,4]
[330069691,1718987590686,-1051.57,0.00021917,4]
[330069692,1718987590712,-500.0,0.00021917,4]
[330069693,1718987590737,-1708.67,0.00021917,4]
[330069694,1718987590765,-586.07,0.00021917,4]
[330069695,1718987590791,-1249.97,0.00021917,4]
[330069696,1718987590819,-500.0,0.00021917,4]
[330069697,1718987590846,-1210.76,0.00021917,4]
[330069698,1718987590872,-500.0,0.00021917,4]
[330069699,1718987590897,-500.0,0.00021917,4]
[330069700,1718987590923,-500.0,0.00021917,4]
[330069701,1718987590948,-530.52,0.00021917,4]
[330069702,1718987590974,-500.0,0.00021917,4]
[330069703,1718987590999,-516.69,0.00021917,4]
[330069704,1718987591026,-500.0,0.00021917,4]
[330069705,1718987591054,-500.0,0.00021917,4]
[330069706,1718987591084,-625.8,0.00021917,7]
[330069707,1718987591111,-1412.24,0.00021917,4]
[330069708,1718987591140,-500.0,0.00021917,4]
[330069709,1718987591171,-584.08,0.00021917,4]
[330069710,1718987591198,-704.21,0.00021917,4]
[330069711,1718987591225,-2262.23,0.00021917,4]
[330069712,1718987591252,-500.0,0.00021917,4]
[330069713,1718987591277,-895.6,0.00021917,4]
[330069714,1718987591307,-1798.52,0.00021917,4]
[330069715,1718987591336,-638.47,0.00021917,4]
[330069716,1718987591367,-514.83,0.00021917,4]
[330069717,1718987591394,-500.0,0.00021917,4]
[330069718,1718987591421,-814.59,0.00021917,4]
[330069719,1718987591447,-2250.7,0.00021917,4]
[330069720,1718987591472,-500.0,0.00021917,4]
[330069721,1718987591499,-500.0,0.00021917,4]
[330069722,1718987591524,-595.49,0.00021917,4]
[330069723,1718987591554,-500.0,0.00021917,4]
[330069724,1718987591580,-500.0,0.00021917,4]
[330069725,1718987591605,-500.0,0.00021917,4]
[330069726,1718987591630,-500.0,0.00021917,4]
[330069727,1718987591667,-669.48,0.00021917,4]
[330069728,1718987591696,-1309.98,0.00021917,4]
[330069729,1718987591722,-500.0,0.00021917,4]
[330069730,1718987591747,-428.50092193,0.00021917,4]
[330069731,1718987591772,-211.69730182,0.00021917,4]
[330069732,1718987591800,-500.0,0.00021917,4]
[330069733,1718987591826,-904.05,0.00021917,4]
[330069734,1718987591850,-656.57,0.00021917,4]
[330069735,1718987591876,-510.04075716,0.00021917,4]
[330069736,1718987591902,-1469.38,0.00021917,4]
[330069737,1718987591929,-151.0,0.00021917,2]
[330069738,1718987591957,-520.58,0.00021917,4]
[330069739,1718987591983,-151.0,0.00021917,2]
[330069740,1718987592016,-152.178944,0.00021917,2]
[330069741,1718987592044,-500.0,0.00021917,4]
[330069742,1718987592072,-500.0,0.00021917,4]
[330069743,1718987592099,-714.95,0.00021917,4]
[330069744,1718987592127,-956.81,0.00021917,4]
[330069745,1718987592158,-992.0,0.00021917,4]
[330069746,1718987592184,-500.0,0.00021917,4]
[330069747,1718987592210,-580.05,0.00021917,4]
[330069748,1718987592237,-1562.09,0.00021917,4]
[330069749,1718987592263,-500.0,0.00021917,4]
[330069750,1718987592294,-1427.35,0.00021917,4]
[330069751,1718987592321,-500.0,0.00021917,4]
[330069752,1718987592351,-635.23,0.00021917,4]
[330069753,1718987592378,-1462.95,0.00021917,4]
[330069754,1718987592405,-500.0,0.00021917,4]
[330069755,1718987592434,-500.0,0.00021917,4]
[330069756,1718987592460,-2424.04,0.00021917,4]
[330069757,1718987592486,-977.61,0.00021917,4]
[330069758,1718987592513,-689.03,0.00021917,4]
[330069759,1718987592540,-500.0,0.00021917,4]
[330069760,1718987592568,-1449.96,0.00021917,4]
[330069761,1718987592594,-716.36,0.00021917,4]
[330069762,1718987592621,-2229.99,0.00021917,4]
[330069763,1718987592649,-782.3,0.00021917,4]
[330069764,1718987592676,-500.0,0.00021917,4]
[330069765,1718987592702,-637.94,0.00021917,4]
[330069766,1718987592731,-251.23477389,0.00021917,4]
[330069767,1718987592759,-575.25,0.00021917,4]
[330069768,1718987592785,-500.0,0.00021917,4]
[330069769,1718987592813,-915.87,0.00021917,4]
[330069770,1718987592839,-500.0,0.00021917,4]
[330069771,1718987592868,-2721.65,0.00021917,4]
[330069772,1718987592894,-500.0,0.00021917,4]
[330069773,1718987592919,-500.0,0.00021917,4]
[330069774,1718987592944,-2568.64,0.00021917,4]
[330069775,1718987592971,-862.76,0.00021917,4]
[330069776,1718987592996,-500.0,0.00021917,4]
[330069777,1718987593022,-1315.44,0.00021917,4]
[330069778,1718987593048,-500.0,0.00021917,4]
[330069779,1718987593074,-500.0,0.00021917,4]
[330069780,1718987593100,-689.5,0.00021917,4]
[330069781,1718987593125,-500.0,0.00021917,4]
[330069782,1718987593150,-2000.0,0.00021917,4]
[330069783,1718987593178,-1250.85,0.00021917,4]
[330069784,1718987593204,-1322.68,0.00021917,4]
[330069785,1718987593231,-718.18,0.00021917,4]
[330069786,1718987593259,-500.0,0.00021917,4]
[330069787,1718987593284,-500.0,0.00021917,4]
[330069788,1718987593312,-772.11,0.00021917,4]
[330069789,1718987593341,-815.47,0.00021917,4]
[330069790,1718987593368,-500.0,0.00021917,4]
[330069791,1718987593396,-682.02,0.00021917,4]
[330069792,1718987593426,-500.0,0.00021917,4]
[330069793,1718987593451,-500.0,0.00021917,4]
[330069794,1718987593478,-500.0,0.00021917,4]
[330069795,1718987593820,-587.07210162,0.00021917,4]
[330069796,1718987593845,-500.0,0.00021917,4]
[330069797,1718987593869,-558.25,0.00021917,4]
[330069798,1718987593893,-675.31,0.00021917,4]
[330069799,1718987593920,-500.0,0.00021917,4]
[330069800,1718987593947,-500.0,0.00021917,4]
[330069801,1718987593973,-500.0,0.00021917,4]
[330069802,1718987593998,-1646.62,0.00021917,4]
[330069803,1718987594026,-994.95,0.00021917,4]
[330069804,1718987594052,-1969.03,0.00021917,4]
[330069805,1718987594076,-500.0,0.00021917,4]
[330069806,1718987594102,-753.43,0.00021917,4]
[330069807,1718987594130,-500.0,0.00021917,4]
[330069808,1718987594155,-500.0,0.00021917,4]
[330069809,1718987594182,-500.0,0.00021917,4]
[330069810,1718987594209,-1923.03,0.00021917,4]
[330069811,1718987594234,-2336.91,0.00021917,4]
[330069812,1718987594259,-500.0,0.00021917,4]
[330069813,1718987594283,-637.49,0.00021917,4]
[330069814,1718987594308,-827.71,0.00021917,4]
[330069815,1718987594339,-500.0,0.00021917,4]
[330069816,1718987594364,-500.0,0.00021917,4]
[330069817,1718987594390,-236.68450926,0.00021917,4]
[330069818,1718987594418,-500.0,0.00021917,4]
[330069819,1718987594445,-1246.85,0.00021917,4]
[330069820,1718987594470,-501.41525893,0.00021917,4]
[330069821,1718987594495,-1556.34,0.00021917,4]
[330069822,1718987594521,-1334.41,0.00021917,4]
[330069823,1718987594545,-500.0,0.00021917,4]
[330069824,1718987594570,-500.0,0.00021917,4]
[330069825,1718987594597,-500.0,0.00021917,4]
[330069826,1718987594622,-699.3,0.00021917,4]
[330069827,1718987594650,-500.0,0.00021917,4]
[330069828,1718987594675,-500.0,0.00021917,4]
[330069829,1718987594700,-1715.38,0.00021917,4]
[330069830,1718987594725,-1442.92,0.00021917,4]
[330069831,1718987594751,-557.11,0.00021917,4]
[330069832,1718987594777,-706.5,0.00021917,4]
[330069833,1718987594804,-627.51,0.00021917,4]
[330069834,1718987594829,-500.0,0.00021917,4]
[330069835,1718987594853,-500.0,0.00021917,4]
[330069836,1718987594882,-2295.42,0.00021917,4]
[330069837,1718987594907,-701.65,0.00021917,4]
[330069838,1718987594931,-500.0,0.00021917,4]
[330069839,1718987594957,-439.43071319,0.00021917,4]
[330069840,1718987594981,-2301.88,0.00021917,4]
[330069841,1718987595006,-567.38,0.00021917,4]
[330069842,1718987595030,-869.42,0.00021917,4]
[330069843,1718987595056,-956.17,0.00021917,4]
[330069844,1718987595082,-1206.32,0.00021917,4]
[330069845,1718987595106,-1669.99,0.00021917,4]
[330069846,1718987595131,-1530.22,0.00021917,4]
[330069847,1718987595156,-500.0,0.00021917,4]
[330069848,1718987595182,-1238.7,0.00021917,4]
[330069849,1718987595206,-500.0,0.00021917,4]
[330069850,1718987595230,-500.0,0.00021917,4]
[330069851,1718987595254,-500.0,0.00021917,4]
[330069852,1718987595279,-1127.42,0.00021917,4]
[330069853,1718987595306,-525.73,0.00021917,4]
[330069854,1718987595334,-500.0,0.00021917,4]
[330069855,1718987595358,-1196.33,0.00021917,4]
[330069856,1718987595383,-2035.76,0.00021917,4]
[330069857,1718987595409,-825.91,0.00021917,4]
[330069858,1718987595436,-500.0,0.00021917,4]
[330069859,1718987595461,-500.0,0.00021917,4]
[330069860,1718987595486,-1352.93,0.00021917,4]
[330069861,1718987595512,-973.63,0.00021917,4]
[330069862,1718987595537,-500.0,0.00021917,4]
[330069863,1718987595566,-5322.73,0.00021917,4]
[330069864,1718987595592,-199.269397,0.00021917,2]
[330069865,1718987595616,-2164.51,0.00021917,4]
[330069866,1718987595642,-500.0,0.00021917,4]
[330069867,1718987595671,-947.43,0.00021917,4]
[330069868,1718987595697,-1706.13,0.00021917,4]
[330069869,1718987595724,-500.0,0.00021917,4]
[330069870,1718987595757,-1278.77,0.00021917,4]
[330069871,1718987595782,-500.0,0.00021917,4]
[330069872,1718987595809,-500.0,0.00021917,4]
[330069873,1718987595833,-1413.38,0.00021917,4]
[330069874,1718987595859,-607.74991032,0.00021917,4]
[330069875,1718987595888,-36888.3,0.00021917,4]
[330069876,1718987595915,-745.87,0.00021917,4]
[330069877,1718987595941,-500.0,0.00021917,4]
[330069878,1718987595966,-500.0,0.00021917,4]
[330069879,1718987595993,-1938.16,0.00021917,4]
[330069880,1718987596019,-500.0,0.00021917,4]
[330069881,1718987596044,-500.0,0.00021917,4]
[330069882,1718987596070,-500.0,0.00021917,4]
[330069883,1718987596096,-2439.28,0.00021917,4]
[330069884,1718987596121,-500.0,0.00021917,4]
[330069885,1718987596147,-500.0,0.00021917,4]
[330069886,1718987596173,-692.4,0.00021917,4]
[330069887,1718987596200,-500.0,0.00021917,4]
[330069888,1718987596226,-500.0,0.00021917,4]
[330069889,1718987596251,-2043.27,0.00021917,4]
[330069890,1718987596276,-1658.31,0.00021917,4]
[330069891,1718987596304,-500.0,0.00021917,4]
[330069892,1718987596330,-500.0,0.00021917,4]
[330069893,1718987596358,-1101.45,0.00021917,4]
[330069894,1718987596384,-500.0,0.00021917,4]
[330069895,1718987596410,-1509.06,0.00021917,4]
[330069896,1718987596444,-500.0,0.00021917,4]
[330069897,1718987596468,-500.0,0.00021917,4]
[330069898,1718987596495,-556.62,0.00021917,4]
[330069899,1718987596520,-1016.21,0.00021917,4]
[330069900,1718987596546,-2381.91,0.00021917,4]
[330069901,1718987596571,-500.0,0.00021917,2]
[330069902,1718987596597,-2433.25,0.00021917,4]